fUST/lending_fUST_20250911
["ID","MTS","AMOUNT","RATE_DAILY","PERIOD"]
[384740179,1757520651488,-380.38914142,0.00014442,2]
[384740181,1757520651497,-430.56422577,0.00014442,2]
[384740183,1757520651507,-482.4298729,0.00014442,2]
[384740185,1757520651516,-200.0,0.00014442,2]
[384740187,1757520651526,-500.0,0.00014442,2]
[384740189,1757520651535,-480.0,0.00014442,2]
[384740191,1757520651544,-480.0,0.00014442,2]
[384740193,1757520651553,-151.0,0.00014442,2]
[384740195,1757520651563,-151.0,0.00014442,2]
[384740197,1757520651572,-228.891755,0.00014442,2]
[384740199,1757520651581,-228.891755,0.00014442,2]
[384740201,1757520651589,-228.891755,0.00014442,2]
[384740203,1757520651598,-228.891755,0.00014442,2]
[384740205,1757520651608,-480.0,0.00014443,2]
[384740207,1757520651617,-488.38936323,0.00014443,2]
[384740209,1757520651626,-480.0,0.00014443,2]
[384740210,1757520651636,-539.02,0.00014443,2]
[384740212,1757520651645,-151.0,0.00014443,2]
[384740214,1757520651654,-151.0,0.00014443,2]
[384740216,1757520651663,-151.0,0.00014443,2]
[384740218,1757520651672,-151.0,0.00014443,2]
[384740220,1757520651681,-151.0,0.00014443,2]
[384740222,1757520651691,-151.0,0.00014443,2]
[384740224,1757520651700,-157.0,0.00014444,5]
[384740226,1757520651709,-157.0,0.00014444,5]
[384740228,1757520651718,-157.0,0.00014444,5]
[384740230,1757520651728,-157.0,0.00014444,5]
[384740232,1757520651738,-295.999999,0.00014444,5]
[384740234,1757520651748,-157.0,0.00014444,5]
[384740236,1757520651757,-157.0,0.00014444,5]
[384740238,1757520651767,-500.0,0.00014444,5]
[384740240,1757520651776,-157.0,0.00014444,5]
[384740242,1757520651785,-267.33463135,0.00014444,5]
[384740244,1757520651794,-500.0,0.00014521,2]
[384740246,1757520651804,-500.0,0.00014521,2]
[384740248,1757520651813,-500.00546577,0.00014521,2]
[384740250,1757520651822,-151.0,0.00014521,2]
[384740252,1757520651832,-192.369508,0.00014521,2]
[384740254,1757520651841,-151.0,0.00014521,2]
[384740256,1757520651850,-151.0,0.00014521,2]
[384740258,1757520651860,-151.0,0.00014521,2]
[384740260,1757520651870,-151.0,0.00014521,2]
[384740262,1757520651879,-151.0,0.00014521,2]
[384740264,1757520651889,-151.0,0.00014521,2]
[384740266,1757520651900,-151.0,0.00014521,2]
[384740268,1757520651910,-151.0,0.00014521,2]
[384740270,1757520651920,-151.0,0.00014521,2]
[384740272,1757520651930,-151.0,0.00014641,2]
[384740274,1757520651941,-1000.0,0.00014641,2]
[384740276,1757520651951,-15176.1138436,0.00014641,2]
[384740278,1757520651961,-151.0,0.00014641,2]
[384740280,1757520651971,-1000.0,0.00014641,2]
[384740282,1757520651980,-151.0,0.00014641,2]
[384740284,1757520651990,-1000.0,0.00014641,2]
[384740286,1757520651999,-151.0,0.00014641,2]
[384740288,1757520652009,-514.35169207,0.00014641,2]
[384740290,1757520652019,-202.53925731,0.00014641,2]
[384740292,1757520652029,-1000.0,0.00014641,2]
[384740294,1757520652038,-151.0,0.00014641,2]
[384740296,1757520652048,-1000.0,0.00014641,2]
[384740298,1757520652058,-151.0,0.00014641,2]
[384740300,1757520652067,-1000.0,0.00014641,2]
[384740302,1757520652077,-151.0,0.00014641,2]
[384740304,1757520652087,-1000.0,0.00014641,2]
[384740306,1757520652096,-151.0,0.00014641,2]
[384740308,1757520652105,-1000.0,0.00014641,2]
[384740310,1757520652115,-514.21527815,0.00014641,2]
[384740312,1757520652124,-151.0,0.00014641,2]
[384740314,1757520652134,-250.0,0.00014641,2]
[384740316,1757520652143,-1000.0,0.00014641,2]
[384740318,1757520652152,-151.0,0.00014641,2]
[384740320,1757520652162,-250.0,0.00014641,2]
[384740322,1757520652171,-1000.0,0.00014641,2]
[384740324,1757520652181,-151.0,0.00014641,2]
[384740326,1757520652190,-151.0,0.00014641,2]
[384740328,1757520652201,-250.0,0.00014641,2]
[384740330,1757520652211,-1000.0,0.00014641,2]
[384740332,1757520652220,-151.0,0.00014641,2]
[384740334,1757520652229,-151.0,0.00014641,2]
[384740336,1757520652239,-250.0,0.00014641,2]
[384740338,1757520652248,-1000.0,0.00014641,2]
[384740339,1757520652257,-151.0,0.00014641,2]
[384740341,1757520652267,-1000.0,0.00014641,2]
[384740343,1757520652277,-250.0,0.00014641,2]
[384740345,1757520652287,-151.0,0.00014641,2]
[384740347,1757520652296,-1000.0,0.00014641,2]
[384740349,1757520652305,-250.0,0.00014641,2]
[384740351,1757520652314,-151.0,0.00014641,2]
[384740353,1757520652324,-1000.0,0.00014641,2]
[384740355,1757520652333,-250.0,0.00014641,2]
[384740357,1757520652343,-151.0,0.00014641,2]
[384740360,1757520652353,-1000.0,0.00014641,2]
[384740362,1757520652362,-250.0,0.00014641,2]
[384740364,1757520652371,-250.0,0.00014641,2]
[384740365,1757520652381,-151.0,0.00014641,2]
[384740368,1757520652390,-1000.0,0.00014641,2]
[384740369,1757520652402,-250.0,0.00014641,2]
[384740372,1757520652412,-151.0,0.00014641,2]
[384740373,1757520652421,-151.0,0.00014641,2]
[384740376,1757520652430,-250.0,0.00014641,2]
[384740378,1757520652440,-151.0,0.00014641,2]
[384740380,1757520652450,-308.3926338,0.00014641,2]
[384740382,1757520652459,-151.0,0.00014641,2]
[384740384,1757520652469,-151.0,0.00014641,2]
[384740386,1757520652478,-151.0,0.00014641,2]
[384740388,1757520652488,-151.0,0.00014641,2]
[384740390,1757520652497,-153.58271407,0.00014641,2]
[384740392,1757520652507,-151.0,0.00014641,2]
[384740394,1757520652516,-151.0,0.00014641,2]
[384740396,1757520652525,-151.0,0.00014641,2]
[384740398,1757520652534,-196.2736411,0.00014641,2]
[384740409,1757520652633,-151.0,0.00014641,2]
[384740411,1757520652646,-151.0,0.00014641,2]
[384740413,1757520652655,-511.084902,0.00014641,2]
[384740415,1757520652665,-511.084902,0.00014641,2]
[384740417,1757520652674,-511.084902,0.00014641,2]
[384740419,1757520652683,-511.084902,0.00014641,2]
[384740421,1757520652693,-151.0,0.00014665,2]
[384740423,1757520652702,-180.634112,0.00014665,2]
[384740425,1757520652713,-228.891755,0.00014665,2]
[384740428,1757520652722,-228.891755,0.00014665,2]
[384740430,1757520652732,-228.891755,0.00014665,2]
[384740432,1757520652741,-228.891755,0.00014665,2]
[384740433,1757520652751,-2299.50177219,0.00014665,2]
[384740435,1757520652760,-500.0,0.00014673,2]
[384740437,1757520652770,-501.59109932,0.00014673,2]
[384740439,1757520652779,-500.0,0.00014673,2]
[384740441,1757520652789,-151.0,0.00014673,2]
[384740444,1757520652800,-160.0,0.00014694,2]
[384740446,1757520652809,-500.0,0.00014716,2]
[384740448,1757520652819,-480.0,0.00014716,2]
[384740450,1757520652828,-480.0,0.00014717,2]
[384740452,1757520652838,-157.0,0.00014718,5]
[384740454,1757520652847,-500.0,0.00014718,5]
[384740456,1757520652857,-544.08240392,0.00014941,2]
[384740458,1757520652867,-2176.3296157,0.00014941,2]
[384740460,1757520652876,-4896.74163531,0.00014941,2]
[384740462,1757520652885,-151.0,0.00014941,2]
[384740463,1757520652896,-215.999878,0.00014941,2]
[384740466,1757520652906,-215.999878,0.00014941,2]
[384740468,1757520652915,-151.0,0.00014941,2]
[384740470,1757520652929,-215.999878,0.00014941,2]
[384740472,1757520652938,-215.999878,0.00014941,2]
[384740474,1757520652948,-151.0,0.00014941,2]
[384740476,1757520652958,-151.0,0.00014941,2]
[384740478,1757520652967,-156.54953578,0.00014941,2]
[384740480,1757520652976,-151.0,0.00014941,2]
[384740482,1757520652986,-226.394277,0.00014941,2]
[384740484,1757520652996,-151.0,0.00014941,2]
[384740486,1757520653005,-151.0,0.00014941,2]
[384740488,1757520653015,-151.0,0.00014941,2]
[384740490,1757520653024,-151.0,0.00014941,2]
[384740492,1757520653034,-151.0,0.00014941,2]
[384740494,1757520653044,-151.0,0.00014941,2]
[384740496,1757520653053,-500.0,0.00014966,2]
[384740498,1757520653063,-500.0,0.00014968,2]
[384740500,1757520653073,-500.0,0.00014968,2]
[384740502,1757520653083,-500.61231435,0.00014968,2]
[384740504,1757520653093,-480.0,0.0001499,2]
[384740506,1757520653103,-186.0,0.00014992,5]
[384740508,1757520653112,-500.0,0.00014992,5]
[384740510,1757520653122,-160.0,0.00015,2]
[384740512,1757520653131,-500.0,0.00015031,2]
[384740514,1757520653140,-192.446414,0.00015068,2]
[384740516,1757520653152,-500.0,0.00015091,2]
[384740518,1757520653161,-500.0,0.00015091,2]
[384740520,1757520653170,-500.0,0.00015091,2]
[384740522,1757520653180,-6562.5479729,0.00015108,2]
[384740533,1757520653274,-5352.23340905,0.00015108,2]
[384740558,1757520653580,5000.0,0.00017,7]
[384741556,1757520663850,864.0,0.00018768,20]
[384745251,1757520702772,864.0,0.00018661,20]
[384748744,1757520739993,219.852249,0.00013699,2]
[384752355,1757520876827,481.78186912,0.00013662,2]
[384752356,1757520889296,-480.0,0.00013972,2]
[384752357,1757520889374,-480.0,0.00013972,2]
[384752358,1757520889447,-480.0,0.00013995,2]
[384752359,1757520889518,-500.0,0.00013996,2]
[384752360,1757520889589,-300.0,0.00013996,2]
[384752361,1757520889661,-480.0,0.00013997,2]
[384752362,1757520889728,-480.69639196,0.00013997,2]
[384752363,1757520889792,-500.0,0.00013997,2]
[384752364,1757520889859,-500.0,0.00013997,2]
[384752365,1757520889929,-500.0,0.00013997,2]
[384752366,1757520889993,-118.61721608,0.00013997,2]
[384752367,1757520890068,-361.38278392,0.00013997,2]
[384752368,1757520890133,-194.97831439,0.00013997,2]
[384752369,1757520890197,-500.0,0.00013997,2]
[384752370,1757520890261,-372.09111883,0.00013997,2]
[384752371,1757520890330,-481.78186912,0.00013997,2]
[384752372,1757520890395,-480.0,0.00013997,2]
[384752373,1757520890460,-480.0,0.00013997,2]
[384752374,1757520890527,-480.0,0.00013997,2]
[384752375,1757520890596,-480.0,0.00013997,2]
[384752376,1757520890660,-480.0,0.00013997,2]
[384752377,1757520890721,-480.0,0.00013997,2]
[384752378,1757520891828,419.54182748,0.00013997,2]
[384752379,1757520891889,60.45817252,0.00013997,2]
[384752380,1757520894028,480.0,0.00013997,2]
[384752381,1757520915703,208.99255524,0.00013985,2]
[384752382,1757520922171,480.0,0.00013972,2]
[384752383,1757520957061,480.0,0.00013997,2]
[384752384,1757520957735,224.98616875,0.00013997,2]
[384752385,1757520962571,460.0,0.00013997,2]
[384752386,1757520975168,490.14841126,0.00013997,2]
[384752387,1757520989048,487.66,0.00013939,2]
[384752388,1757520995593,6627.76469223,0.00013939,2]
[384752389,1757520995660,3372.23530777,0.00013939,2]
[384752391,1757521098832,480.0,0.00013939,2]
[384752392,1757521102286,480.0,0.00013985,2]
[384752393,1757521113403,480.0,0.00013939,2]
[384752397,1757521151081,480.0,0.00013996,2]
[384752409,1757521253515,-498.0,0.00028709,7]
[384752410,1757521253542,-153.96710953,0.00028709,7]
[384752411,1757521253568,-10000.0,0.00028709,15]
[384752412,1757521253595,-239.76085016,0.00028709,10]
[384752413,1757521253621,-1092.66158526,0.00028709,10]
[384752414,1757521253648,-200.0,0.00028709,10]
[384752415,1757521253674,-1014.87842609,0.00028709,10]
[384752416,1757521253700,-1536.19212343,0.00028709,14]
[384752417,1757521253725,-326.1245375,0.00028709,7]
[384752418,1757521253751,-8621.76993613,0.00028709,7]
[384752419,1757521253777,-194.31693843,0.00028709,12]
[384752420,1757521253804,-2510.5121911,0.00028709,7]
[384752421,1757521253830,-10564.30157763,0.00028709,7]
[384752422,1757521253860,-4963047.51472474,0.00028709,20]
[384752424,1757521257187,-5000000.0,0.00028709,20]
[384752425,1757521260279,-506453.21017591,0.00028709,20]
[384752426,1757521260308,-1516.30873291,0.00028709,15]
[384752427,1757521260335,-27452.16403944,0.00028709,7]
[384752428,1757521260362,-843.12596561,0.00028709,30]
[384752429,1757521260390,-180000.0,0.00028709,30]
[384752430,1757521260421,-22083.66466462,0.00028709,30]
[384752431,1757521260456,-4261651.52642151,0.00028709,20]
[384752432,1757521263158,-1352790.61524898,0.00028709,20]
[384752433,1757521263187,-791.4032616,0.00028709,32]
[384752434,1757521263215,-907.14907105,0.00028709,14]
[384752435,1757521263243,-1004.35922672,0.00028709,14]
[384752436,1757521263271,-240460.41212295,0.00028709,30]
[384752437,1757521263300,-186.44989261,0.00028709,7]
[384752438,1757521263335,-173846.67446363,0.00028709,20]
[384752439,1757521263362,-224.93960145,0.00028709,15]
[384752440,1757521263390,-133723.47460489,0.00028709,30]
[384752441,1757521263417,-7910.08422891,0.00028709,15]
[384752442,1757521263447,-1509.92904259,0.00028709,30]
[384752443,1757521263477,-10569.0698955,0.00028709,30]
[384752444,1757521263504,-1863.77070371,0.00028709,30]
[384752445,1757521263531,-1526.82922328,0.00028709,30]
[384752446,1757521263561,-3072684.83941213,0.00028709,20]
[384752448,1757521272644,480.0,0.00013939,2]
[384752449,1757521326700,480.0,0.0001393,2]
[384752450,1757521335297,-5000000.0,0.00028709,20]
[384752451,1757521338438,-5000000.0,0.00028709,20]
[384752452,1757521341620,-5000000.0,0.00028709,20]
[384752453,1757521344409,-5000000.0,0.00028709,20]
[384752457,1757521409762,314.810986,0.0001376,2]
[384752458,1757521422729,3249.05619164,0.0001357,2]
[384752474,1757521644871,183.90751459,0.00013954,2]
[384752475,1757521644894,816.09248541,0.00013954,2]
[384752477,1757521676707,-5000000.0,0.0002871,20]
[384752478,1757521681406,-5000002.0,0.0002871,20]
[384752479,1757521684566,-5000003.0,0.0002871,20]
[384752480,1757521687058,-3201988.86107486,0.0002871,20]
[384752481,1757521687087,-793107.37100249,0.0002871,60]
[384752482,1757521687114,-6212.0,0.0002871,60]
[384752483,1757521687145,-998695.76792265,0.0002871,20]
[384752484,1757521731997,5000.0,0.00017,7]
[384752488,1757521813839,208.859636,0.00013699,2]
[384752567,1757521832125,-1151.0,0.00014798,2]
[384752570,1757521832134,-705.78178293,0.00014856,2]
[384752574,1757521832144,-300.0,0.00014947,2]
[384752578,1757521832154,-1151.0,0.00014947,2]
[384752580,1757521832164,-480.0,0.00014955,2]
[384752583,1757521832175,-480.0,0.00014955,2]
[384752585,1757521832184,-169.40799604,0.00014955,2]
[384752587,1757521832194,-480.0,0.00014955,2]
[384752589,1757521832204,-480.0,0.00014955,2]
[384752591,1757521832213,-480.0,0.00014955,2]
[384752592,1757521832223,-480.0,0.00014955,2]
[384752595,1757521832233,-366.95156129,0.00014955,2]
[384752597,1757521832243,-480.0,0.00014955,2]
[384752599,1757521832255,-480.0,0.00014955,2]
[384752601,1757521832264,-480.0,0.00014955,2]
[384752603,1757521832274,-220.22644655,0.00014955,2]
[384752606,1757521832283,-480.0,0.00014955,2]
[384752608,1757521832293,-480.0,0.00014955,2]
[384752610,1757521832302,-500.0,0.00014955,2]
[384752612,1757521832311,-480.0,0.00014955,2]
[384752614,1757521832321,-480.0,0.00014955,2]
[384752616,1757521832331,-480.0,0.00014955,2]
[384752618,1757521832340,-480.0,0.00014956,2]
[384752620,1757521832349,-480.0,0.00014956,2]
[384752622,1757521832359,-213.76333603,0.00014956,2]
[384752624,1757521832368,-480.0,0.00014956,2]
[384752626,1757521832378,-480.0,0.00014956,2]
[384752628,1757521832388,-480.0,0.00014956,2]
[384752630,1757521832397,-480.0,0.00014956,2]
[384752632,1757521832407,-480.0,0.00014956,2]
[384752633,1757521832416,-480.0,0.00014956,2]
[384752634,1757521832425,-480.0,0.00014956,2]
[384752635,1757521832434,-480.0,0.00014956,2]
[384752636,1757521832443,-480.0,0.00014956,2]
[384752637,1757521832453,-480.0,0.00014956,2]
[384752638,1757521832462,-482.3281145,0.00014956,2]
[384752639,1757521832472,-480.0,0.00014956,2]
[384752640,1757521832480,-484.37420246,0.00014956,2]
[384752641,1757521832489,-486.668752,0.00014956,2]
[384752642,1757521832499,-480.0,0.00014956,2]
[384752643,1757521832509,-500.0,0.00014956,2]
[384752644,1757521832518,-500.0,0.00014956,2]
[384752645,1757521832528,-628.13,0.00014956,2]
[384752646,1757521832538,-480.0,0.00014956,2]
[384752647,1757521832547,-480.0,0.00014956,2]
[384752648,1757521832557,-480.0,0.00014956,2]
[384752649,1757521832568,-480.0,0.00014956,2]
[384752650,1757521832578,-500.0,0.00014956,2]
[384752651,1757521832588,-500.0,0.00014956,2]
[384752652,1757521832598,-616.74606175,0.00014956,2]
[384752653,1757521832608,-500.0,0.00014956,2]
[384752654,1757521832617,-500.0,0.00014956,2]
[384752655,1757521832627,-500.0,0.00014956,2]
[384752656,1757521832638,-500.0,0.00014956,2]
[384752657,1757521832647,-500.0,0.00014956,2]
[384752658,1757521832656,-500.0,0.00014956,2]
[384752659,1757521832666,-500.0,0.00014956,2]
[384752660,1757521832675,-500.0,0.00014956,2]
[384752661,1757521832684,-500.0,0.00014956,2]
[384752662,1757521832693,-500.0,0.00014956,2]
[384752663,1757521832703,-325.95039399,0.00014956,2]
[384752664,1757521832712,-500.0,0.00014956,2]
[384752665,1757521832721,-500.0,0.00014956,2]
[384752666,1757521832731,-422.78934164,0.00014956,2]
[384752667,1757521832740,-500.0,0.00014956,2]
[384752668,1757521832750,-500.0,0.00014956,2]
[384752669,1757521832759,-500.0,0.00014956,2]
[384752670,1757521832769,-500.0,0.00014956,2]
[384752671,1757521832778,-377.0,0.00014956,2]
[384752672,1757521832788,-505.7,0.00014956,2]
[384752673,1757521832797,-500.0,0.00014956,2]
[384752674,1757521832807,-379.27403636,0.00014956,2]
[384752675,1757521832816,-500.0,0.00014956,2]
[384752676,1757521832826,-500.0,0.00014956,2]
[384752677,1757521832835,-500.0,0.00014956,2]
[384752678,1757521832845,-500.0,0.00014956,2]
[384752679,1757521832854,-300.0,0.00014956,2]
[384752680,1757521832864,-500.0,0.00014956,2]
[384752681,1757521832874,-296.93297736,0.00014956,2]
[384752682,1757521832883,-500.0,0.00014956,2]
[384752683,1757521832893,-200.0,0.00014956,2]
[384752684,1757521832902,-480.0,0.00014956,2]
[384752685,1757521832912,-480.0,0.00014956,2]
[384752686,1757521832921,-480.0,0.00014956,2]
[384752687,1757521832930,-480.0,0.00014956,2]
[384752688,1757521832939,-488.0207895,0.00014956,2]
[384752689,1757521832949,-480.0,0.00014956,2]
[384752690,1757521832958,-480.0,0.00014956,2]
[384752691,1757521832967,-480.0,0.00014956,2]
[384752692,1757521832976,-480.0,0.00014956,2]
[384752693,1757521832987,-500.0,0.00014956,2]
[384752694,1757521832996,-250.08492147,0.00014956,2]
[384752695,1757521833006,-480.0,0.00014956,2]
[384752696,1757521833015,-480.0,0.00014956,2]
[384752697,1757521833024,-243.35,0.00014956,2]
[384752698,1757521833034,-460.0,0.00014956,2]
[384752699,1757521833043,-405.93,0.00014956,2]
[384752700,1757521833053,-480.0,0.00014956,2]
[384752701,1757521833062,-625.74283632,0.00014956,2]
[384752702,1757521833072,-480.0,0.00014956,2]
[384752703,1757521833082,-484.12425234,0.00014956,2]
[384752704,1757521833091,-480.0,0.00014956,2]
[384752705,1757521833101,-480.0,0.00014956,2]
[384752706,1757521833111,-480.0,0.00014956,2]
[384752707,1757521833120,-504.3,0.00014956,2]
[384752708,1757521833132,-37971.0024887,0.00014957,2]
[384752709,1757521833142,-192.446414,0.00015068,2]
[384752710,1757521833153,-500.0,0.00015068,2]
[384752711,1757521833163,-480.0,0.00015229,2]
[384752712,1757521833172,-480.0,0.00015229,2]
[384752713,1757521833183,-480.0,0.0001523,2]
[384752714,1757521833192,-465.46761817,0.0001523,2]
[384752715,1757521833202,-264.78696513,0.0001523,2]
[384752716,1757521833213,-226.47,0.0001523,2]
[384752717,1757521833223,-495.88,0.0001523,2]
[384752718,1757521833232,-310.64,0.0001523,2]
[384752719,1757521833242,-600.0,0.00015255,2]
[384752720,1757521833252,-155.0,0.00015396,2]
[384752721,1757521833262,-480.0,0.00015503,2]
[384752722,1757521833271,-500.0,0.00015524,2]
[384752723,1757521833280,-480.0,0.00015777,2]
[384752724,1757521833289,-480.0,0.00016051,2]
[384752725,1757521833299,-1047.82311632,0.00016064,2]
[384752726,1757521833308,-10507.07433831,0.00016064,2]
[384752727,1757521833319,-302.0,0.00016119,2]
[384752728,1757521833329,-157.0,0.00016119,2]
[384752729,1757521833339,-157.0,0.00016119,2]
[384752730,1757521833348,-500.0,0.00016119,2]
[384752731,1757521833358,-161.44,0.00016139,3]
[384752732,1757521833368,-1130.08,0.00016139,3]
[384752733,1757521833378,-699.58,0.00016139,3]
[384752734,1757521833388,-151.0,0.00016139,2]
[384752735,1757521833397,-151.0,0.00016139,2]
[384752736,1757521833407,-151.0,0.00016139,2]
[384752737,1757521833417,-260.0,0.00016139,2]
[384752738,1757521833427,-151.0,0.00016139,2]
[384752739,1757521833437,-151.0,0.00016139,2]
[384752740,1757521833447,-151.0,0.00016139,2]
[384752741,1757521833456,-151.0,0.00016139,2]
[384752742,1757521833466,-151.0,0.00016139,2]
[384752743,1757521833477,-151.0,0.00016139,2]
[384752744,1757521833489,-151.0,0.00016139,2]
[384752745,1757521833499,-151.0,0.00016139,2]
[384752746,1757521833512,-151.0,0.00016139,2]
[384752747,1757521833522,-151.0,0.00016139,2]
[384752748,1757521833533,-151.0,0.00016139,2]
[384752749,1757521833543,-245.31765688,0.00016139,2]
[384752750,1757521833558,-495.07208679,0.00016148,2]
[384752751,1757521833568,-80188.34556961,0.00016149,2]
[384752752,1757521833656,-429.14,0.00016149,2]
[384752753,1757521833761,-5562.313738,0.00016149,2]
[384752754,1757521833803,-841.5581771,0.00016149,2]
[384752755,1757521833816,-8740.6,0.00016149,2]
[384752772,1757521838076,-349.79,0.00016139,3]
[384752773,1757521838085,-2521.21150801,0.00016149,2]
[384752836,1757521840148,-20601.69365,0.00016149,2]
[384752901,1757521843078,-328.95128276,0.00016149,2]
[384752905,1757521843136,-420.73348553,0.00016149,2]
[384752906,1757521843148,-12610.14250084,0.00016149,2]
[384752907,1757521843160,-1020.55924771,0.00016149,2]
[384752934,1757521849528,-3510.33679306,0.00015988,2]
[384752935,1757521849540,-174.9,0.00016139,3]
[384752936,1757521849550,-2337.41710624,0.00016149,2]
[384752956,1757522904181,-588.31067252,0.00014314,2]
[384752957,1757522904209,-1200.0,0.00014459,2]
[384752958,1757522904236,-300.0,0.00014459,2]
[384752959,1757522904407,-0.01,0.0001446,2]
[384752961,1757522904526,-0.02,0.0001446,2]
[384752962,1757522904885,-0.04,0.0001446,2]
[384752963,1757522904917,-0.08,0.0001446,2]
[384752964,1757522905345,-0.16,0.0001446,2]
[384752965,1757522905376,-0.32,0.0001446,2]
[384752966,1757522905408,-0.64,0.0001446,2]
[384752967,1757522905494,-8930.89565305,0.0001446,2]
[384752968,1757522905507,-1067.83434695,0.0001446,2]
[384752969,1757522905517,-319.2745905,0.00014509,2]
[384752970,1757522905528,-480.0,0.00014955,2]
[384752971,1757522905537,-154.65,0.00014955,2]
[384752972,1757522905546,-480.0,0.00014955,2]
[384752973,1757522905555,-480.0,0.00014955,2]
[384752974,1757522905565,-480.0,0.00014955,2]
[384752975,1757522905574,-480.0,0.00014955,2]
[384752976,1757522905583,-500.0,0.00014955,2]
[384752977,1757522905593,-500.0,0.00014955,2]
[384752978,1757522905602,-480.0,0.00014955,2]
[384752979,1757522905612,-480.0,0.00014955,2]
[384752980,1757522905622,-549.55,0.00014955,2]
[384752981,1757522905631,-516.35,0.00014955,2]
[384752982,1757522905641,-480.0,0.00014955,2]
[384752983,1757522905650,-480.0,0.00014955,2]
[384752984,1757522905661,-215.49299667,0.00014955,2]
[384752985,1757522905671,-480.0,0.00014955,2]
[384752986,1757522905681,-480.0,0.00014955,2]
[384752987,1757522905691,-480.0,0.00014955,2]
[384752988,1757522905701,-416.53806588,0.00014955,2]
[384752989,1757522905715,-63.46193412,0.00014955,2]
[384752990,1757522905724,-480.0,0.00014955,2]
[384752991,1757522905734,-354.95852569,0.00014955,2]
[384752992,1757522905743,-480.0,0.00014955,2]
[384752993,1757522905752,-480.0,0.00014955,2]
[384752994,1757522905761,-583.06604095,0.00014955,2]
[384752995,1757522905775,-420.74298232,0.00014955,2]
[384752996,1757522905786,-480.0,0.00014955,2]
[384752997,1757522905796,-480.0,0.00014955,2]
[384752998,1757522905806,-480.0,0.00014955,2]
[384752999,1757522905815,-480.0,0.00014955,2]
[384753000,1757522905825,-480.0,0.00014955,2]
[384753001,1757522905834,-308.09929999,0.00014955,2]
[384753002,1757522905844,-480.0,0.00014956,2]
[384753003,1757522905854,-500.0,0.00014956,2]
[384753004,1757522905864,-475.59964219,0.00014956,2]
[384753005,1757522905874,-200.0,0.00015017,2]
[384753006,1757522905884,-192.446414,0.00015068,2]
[384753007,1757522905893,-500.0,0.00015068,2]
[384753008,1757522905902,-250.65364145,0.0001516,2]
[384753009,1757522905912,-396.27195096,0.00015229,2]
[384753010,1757522905921,-480.0,0.00015229,2]
[384753011,1757522905980,480.0,0.00014955,2]
[384753012,1757522908079,480.0,0.00014955,2]
[384753013,1757522913555,480.0,0.00014955,2]
[384753014,1757522918412,480.0,0.00014955,2]
[384753054,1757523032371,-480.0,0.00014805,2]
[384753055,1757523032380,-300.0,0.00014953,2]
[384753056,1757523032390,-580.0,0.00014953,2]
[384753057,1757523032399,-480.0,0.00014954,2]
[384753058,1757523032409,-494.97602965,0.00014954,2]
[384753059,1757523032418,-480.0,0.00014954,2]
[384753061,1757523032427,-480.0,0.00014954,2]
[384753063,1757523032437,-480.0,0.00014954,2]
[384753065,1757523032447,-480.84349762,0.00014954,2]
[384753067,1757523032457,-480.0,0.00014954,2]
[384753069,1757523032466,-480.0,0.00014954,2]